lending/lending_fUSD_20260102
["ID","MTS","AMOUNT","RATE_DAILY","PERIOD"]
[400334346,1767383900877,-103.49248815,0.00017521,2]
[400334347,1767383900902,-65.48272692,0.00017658,2]
[400334348,1767383904385,-160.00897316,0.00017658,2]
[400334349,1767383904407,-67.15581177,0.00017795,2]
[400334350,1767383943787,500.0,0.00016973,2]
[400334351,1767383943864,253.27711762,0.00016973,2]
[400334352,1767383946874,500.0,0.00016973,2]
[400334353,1767383946968,500.0,0.00016973,2]
[400334354,1767383947016,-340.45357547,0.00017521,2]
[400334355,1767383949479,-167.19533709,0.00017521,2]
[400334356,1767383951260,-195.0,0.00017521,2]
[400334357,1767383953018,-169.02062467,0.00017521,2]
[400334358,1767383959124,-55.06433089,0.00017521,2]
[400334359,1767383959145,-151.17517642,0.00017521,2]
[400334360,1767383959718,-848.82482358,0.00017521,2]
[400334361,1767383959747,-1000.0,0.00017521,2]
[400334362,1767383968155,-178.24211257,0.00017795,2]
[400334363,1767384006454,-4.60207566,0.00017795,2]
[400334364,1767384006479,-387.24642354,0.00017795,2]
[400334365,1767384006505,-182.8671503,0.00018068,2]
[400334366,1767384006548,503.23584045,0.00016973,2]
[400334367,1767384006820,408.61713166,0.00014773,2]
[400334368,1767384007624,500.0,0.00016973,2]
[400334369,1767384007672,228.12,0.00017521,2]
[400334370,1767384007857,500.0,0.00016973,2]
[400334371,1767384007920,1000.0,0.00017521,2]
[400334372,1767384009296,-153.65871412,0.00018068,2]
[400334373,1767384013063,-47.31089622,0.00018068,2]
[400334374,1767384013088,-366.4792869,0.00018068,2]
[400334375,1767384015366,-133.5207131,0.00018068,2]
[400334376,1767384015388,-38.52494509,0.00018068,2]
[400334377,1767384017021,-231.28536514,0.00018068,2]
[400334378,1767384018953,-333.14415119,0.00018068,2]
[400334379,1767384020779,-182.34796988,0.00018068,2]
[400334380,1767384060098,169.11030943,0.00018068,2]
[400334381,1767384060127,151.0,0.00018068,2]
[400334382,1767384061278,500.0,0.00042964,120]
[400334383,1767384061409,151.0,0.00018068,2]
[400334384,1767384073266,500.0,0.00027777,120]
[400334385,1767384210006,301.55225226,0.00042964,120]
[400334386,1767384360561,500.0,0.00042964,120]
[400334387,1767384419339,383.82,0.00013699,2]
[400334388,1767384427481,151.0,0.00018068,2]
[400334389,1767384428374,151.0,0.00018068,2]
[400334390,1767384428691,151.0,0.00018068,2]
[400334391,1767384429311,151.0,0.00018068,2]
[400334392,1767384429951,151.0,0.00018068,2]
[400334393,1767384430551,151.0,0.00018068,2]
[400334394,1767384431176,151.0,0.00018068,2]
[400334395,1767384431787,151.0,0.00018068,2]
[400334396,1767384432390,151.0,0.00018068,2]
[400334397,1767384433021,151.0,0.00018068,2]
[400334398,1767384433652,151.0,0.00018068,2]
[400334399,1767384434350,151.0,0.00018068,2]
[400334400,1767384435031,151.0,0.00018068,2]
[400334401,1767384435714,151.0,0.00018068,2]
[400334402,1767384436353,151.0,0.00018068,2]
[400334403,1767384436972,151.0,0.00018068,2]
[400334404,1767384437611,151.0,0.00018068,2]
[400334405,1767384438257,253.3933078,0.00018068,2]
[400334406,1767384439272,-4.8314394,0.00018068,2]
[400334407,1767384446192,260000.0,0.00042964,120]
[400334408,1767384566137,-383.82,0.00020187,2]
[400334409,1767384566158,-151.0,0.0002224,2]
[400334410,1767384566178,-151.0,0.0002224,2]
[400334411,1767384582995,-4149.13310344,0.00022515,2]
[400334412,1767384604411,500.0,0.00016973,2]
[400334413,1767384604470,1000.0,0.00017521,2]
[400334414,1767384604524,383.83676064,0.00018068,2]
[400334418,1767384631831,-151.0,0.00025091,2]
[400334419,1767384631841,-151.0,0.00025091,2]
[400334420,1767384631850,-289.09600092,0.00025118,2]
[400334422,1767384631862,-24.80947795,0.00025118,2]
[400334424,1767384631871,-151.0,0.00025144,2]
[400334426,1767384631881,-151.0,0.00025144,2]
[400334427,1767384631891,-86.1633467,0.000253,49]
[400334428,1767384631906,-65.37558737,0.000253,49]
[400334429,1767384631921,-151.53893403,0.00025301,49]
[400334430,1767384631930,-151.53893403,0.00025302,49]
[400334431,1767384631940,-151.53893403,0.00025302,49]
[400334432,1767384631949,-151.53893403,0.00025303,49]
[400334433,1767384631958,-56.12677344,0.00025304,49]
[400334434,1767384631978,-95.41216059,0.00025304,49]
[400334435,1767384631988,-151.53893403,0.00025305,49]
[400334436,1767384632004,-300.0,0.00025305,2]
[400334437,1767384632018,-222.0,0.00025305,2]
[400334438,1767384632028,-151.53893403,0.00025305,49]
[400334439,1767384632037,-9103.0261873,0.00025306,2]
[400334440,1767384632046,-151.53893403,0.00025306,49]
[400334441,1767384632055,-436067.2397,0.000254,2]
[400334442,1767384632066,-200.0,0.00025408,2]
[400334443,1767384632075,-207.4,0.00025408,2]
[400334444,1767384632084,-215.0738,0.00025408,2]
[400334445,1767384632094,-223.0315306,0.00025408,2]
[400334446,1767384632103,-231.28369723,0.00025408,2]
[400334447,1767384632112,-239.84119403,0.00025408,2]
[400334448,1767384632121,-248.71531821,0.00025408,2]
[400334449,1767384632130,-257.91778498,0.00025408,2]
[400334450,1767384632139,-267.46074303,0.00025408,2]
[400334451,1767384632149,-277.35679052,0.00025484,2]
[400334452,1767384632158,-887.47,0.00025499,2]
[400334453,1767384632167,-9999.99,0.00025499,2]
[400334454,1767384632176,-2000.0,0.000255,2]
[400334455,1767384632185,-4486.89,0.000255,2]
[400334457,1767384632194,-150.99,0.000255,2]
[400334458,1767384632203,-1000.0,0.00025754,2]
[400334459,1767384632212,-1000.0,0.000258,2]
[400334460,1767384632221,-5000.0,0.00026174,2]
[400334461,1767384632230,-3277.86,0.00026607,2]
[400334462,1767384632240,-383.82,0.00026676,2]
[400334463,1767384632249,-287.61899177,0.00026853,2]
[400334464,1767384632258,-166.66,0.00026894,2]
[400334465,1767384632268,-9103.02618725,0.00027257,2]
[400334466,1767384632277,-999.0,0.00027316,3]
[400334467,1767384632286,-500.0,0.00027397,20]
[400334468,1767384632296,-445.89134248,0.00027577,2]
[400334469,1767384632305,-500.0,0.00027577,2]
[400334470,1767384632319,-340.80208677,0.00027577,2]
[400334471,1767384632328,-500.0,0.00027577,2]
[400334472,1767384632337,-500.0,0.00027577,2]
[400334473,1767384632347,-500.0,0.00027577,2]
[400334474,1767384632359,-500.0,0.00027577,2]
[400334475,1767384632371,-500.0,0.00027577,2]
[400334476,1767384632380,-500.0,0.00027577,2]
[400334477,1767384632398,-500.0,0.00027577,2]
[400334478,1767384632409,-500.0,0.00027577,2]
[400334479,1767384632419,-500.0,0.00027577,2]
[400334480,1767384632430,-500.0,0.00027577,2]
[400334481,1767384632442,-500.0,0.00027577,2]
[400334482,1767384632453,-221.96585126,0.00027577,2]
[400334483,1767384632464,-500.0,0.00027577,2]
[400334484,1767384632475,-500.0,0.00027577,2]
[400334486,1767384632486,-500.0,0.00027577,2]
[400334488,1767384632498,-500.0,0.00027577,2]
[400334490,1767384632509,-500.0,0.00027577,2]
[400334492,1767384632519,-500.0,0.00027577,2]
[400334494,1767384632529,-500.0,0.00027577,2]
[400334496,1767384632540,-500.0,0.00027577,2]
[400334498,1767384632550,-500.0,0.00027577,2]
[400334500,1767384632559,-500.0,0.00027577,2]
[400334502,1767384632569,-500.0,0.00027577,2]
[400334504,1767384632579,-514.82633443,0.00027577,2]
[400334506,1767384632588,-500.0,0.00027577,2]
[400334508,1767384632598,-500.0,0.00027577,2]
[400334510,1767384632608,-500.0,0.00027577,2]
[400334512,1767384632618,-500.0,0.00027577,2]
[400334514,1767384632629,-500.0,0.00027577,2]
[400334516,1767384632639,-500.0,0.00027577,2]
[400334518,1767384632650,-500.0,0.00027577,2]
[400334520,1767384632660,-500.0,0.00027577,2]
[400334523,1767384632671,-500.0,0.00027577,2]
[400334525,1767384632682,-500.0,0.00027577,2]
[400334527,1767384632692,-500.0,0.00027577,2]
[400334529,1767384632703,-500.0,0.00027577,2]
[400334530,1767384632713,-500.0,0.00027577,2]
[400334531,1767384632723,-500.0,0.00027577,2]
[400334532,1767384632733,-500.0,0.00027577,2]
[400334533,1767384632746,-500.0,0.00027577,2]
[400334534,1767384632757,-500.0,0.00027577,2]
[400334535,1767384632767,-500.0,0.00027577,2]
[400334536,1767384632777,-500.0,0.00027577,2]
[400334537,1767384632787,-500.0,0.00027577,2]
[400334538,1767384632797,-500.0,0.00027577,2]
[400334540,1767384632808,-500.0,0.00027577,2]
[400334542,1767384632818,-500.0,0.00027577,2]
[400334544,1767384632828,-500.0,0.00027577,2]
[400334545,1767384632838,-500.0,0.00027577,2]
[400334546,1767384632848,-500.0,0.00027577,2]
[400334547,1767384632858,-500.0,0.00027577,2]
[400334548,1767384632868,-500.0,0.00027577,2]
[400334549,1767384632879,-500.0,0.00027577,2]
[400334550,1767384632889,-500.0,0.00027577,2]
[400334551,1767384632900,-500.0,0.00027577,2]
[400334552,1767384632909,-500.0,0.00027577,2]
[400334553,1767384632919,-500.0,0.00027577,2]
[400334554,1767384632929,-500.0,0.00027577,2]
[400334555,1767384632939,-500.0,0.00027577,2]
[400334556,1767384632949,-500.0,0.00027577,2]
[400334557,1767384632959,-500.0,0.00027577,2]
[400334558,1767384632968,-500.0,0.00027577,2]
[400334559,1767384632977,-500.0,0.00027577,2]
[400334560,1767384632987,-500.0,0.00027577,2]
[400334561,1767384632997,-257.9962057,0.00027577,2]
[400334562,1767384633008,-500.0,0.00027577,2]
[400334563,1767384633019,-500.0,0.00027577,2]
[400334564,1767384633029,-500.0,0.00027577,2]
[400334565,1767384633040,-500.0,0.00027577,2]
[400334566,1767384633050,-500.0,0.00027577,2]
[400334567,1767384633060,-500.0,0.00027577,2]
[400334568,1767384633070,-500.0,0.00027577,2]
[400334569,1767384633080,-500.0,0.00027577,2]
[400334570,1767384633090,-500.0,0.00027577,2]
[400334571,1767384633101,-500.0,0.00027577,2]
[400334572,1767384633112,-500.0,0.00027577,2]
[400334573,1767384633126,-500.0,0.00027577,2]
[400334574,1767384633136,-500.0,0.00027577,2]
[400334575,1767384633146,-500.0,0.00027577,2]
[400334576,1767384633156,-499.99999999,0.00027577,2]
[400334577,1767384633166,-500.0,0.00027577,2]
[400334578,1767384633176,-500.0,0.00027577,2]
[400334579,1767384633187,-500.0,0.00027577,2]
[400334580,1767384633197,-500.0,0.00027577,2]
[400334581,1767384633207,-33541.6541,0.00027578,2]
[400334582,1767384633216,-2500.0,0.00027578,2]
[400334583,1767384633226,-150.14249159,0.00027578,2]
[400334584,1767384633236,-2934.33703136,0.00027578,2]
[400334585,1767384633246,-250.0,0.000276,2]
[400334586,1767384633256,-300.0,0.000276,2]
[400334587,1767384633266,-236.08,0.00027667,14]
[400334588,1767384633276,-500.0,0.00027677,2]
[400334589,1767384633287,-483.50737248,0.00027677,2]
[400334590,1767384633297,-256.34117558,0.00027677,2]
[400334591,1767384633307,-176.47266864,0.00027677,2]
[400334592,1767384633321,-184.37141202,0.00027677,2]
[400334593,1767384633331,-1416.77510428,0.00027678,2]
[400334594,1767384633342,-440.39799439,0.00027678,2]
[400334595,1767384633352,-500.0,0.00027777,2]
[400334596,1767384633363,-166.66,0.00027782,2]
[400334597,1767384633374,-224.0,0.00027794,2]
[400334598,1767384633384,-236.08,0.00027941,14]
[400334599,1767384633395,-236.08,0.00028215,14]
[400334600,1767384633406,-298.26089446,0.00028222,2]
[400334601,1767384633416,-236.08,0.00028489,14]
[400334602,1767384633427,-114000.1617008,0.00028509,2]
[400334603,1767384633437,-166.66,0.00028669,2]
[400334604,1767384633449,-236.08,0.00028763,14]
[400334605,1767384633459,-1000.0,0.00028915,2]
[400334606,1767384633470,-2000.0,0.000292,2]
[400334607,1767384633480,-9103.02618725,0.00029208,2]
[400334608,1767384633491,-3336.02310703,0.00029247,2]
[400334609,1767384633504,-151.84655333,0.00029275,2]
[400334610,1767384633514,-1006.8855587,0.00029276,2]
[400334611,1767384633529,-1927.45147262,0.00029276,2]
[400334612,1767384633540,-1000.0,0.000295,2]
[400334613,1767384633551,-166.66,0.00029557,2]
[400334614,1767384633561,-309.29654756,0.00029591,2]
[400334615,1767384633571,-250.0,0.0002975,2]
[400334616,1767384633583,-166.66,0.00030445,2]
[400334617,1767384633593,-150.14249155,0.00030635,2]
[400334618,1767384633603,-320.74051982,0.0003096,2]
[400334619,1767384633615,-2934.33703132,0.00030975,2]
[400334620,1767384633625,-3181.1989129,0.00031159,2]
[400334621,1767384633637,-5921.82727435,0.00031159,2]
[400334622,1767384633647,-166.66,0.00031333,2]
[400334623,1767384633657,-3851.09163814,0.00031356,2]
[400334624,1767384633666,-34728.81,0.00031386,2]
[400334625,1767384633676,-500.0,0.00031397,2]
[400334626,1767384633687,-332.60791905,0.00032329,2]
[400334627,1767384633697,-1000.0,0.0003253,2]
[400334628,1767384633708,-2934.33703132,0.00032673,2]
[400334629,1767384633718,-2000.0,0.000329,2]
[400334630,1767384633728,-151.84655333,0.00032934,2]
[400334631,1767384633739,-150.0,0.00033,14]
[400334632,1767384633751,-9103.02618725,0.0003311,2]
[400334633,1767384633763,-383.82,0.00033165,2]
[400334634,1767384633774,-150.14249155,0.00033692,2]
[400334635,1767384633784,-344.91441206,0.00033698,2]
[400334636,1767384633795,-2934.33703132,0.00034372,2]
[400334637,1767384633805,-2683.0,0.00034556,5]
[400334638,1767384633817,-277.51472647,0.00035061,2]
[400334639,1767384633830,-8825.51146078,0.00035061,2]
[400334640,1767384633840,-357.6762453,0.00035067,2]
[400334641,1767384633850,-159.237,0.00035231,41]
[400334642,1767384633860,-2334.5,0.00035231,41]
[400334643,1767384633873,-153.75731896,0.00035616,29]
[400334644,1767384633883,-2934.33703132,0.0003607,2]
[400334645,1767384633893,-1000.0,0.00036144,2]
[400334646,1767384633903,-370.91026638,0.00036436,2]
[400334647,1767384633914,-168.0,0.00036444,2]
[400334648,1767384633923,-151.84655333,0.00036594,2]
[400334649,1767384633932,-2000.0,0.000366,2]
[400334650,1767384633942,-150.14249155,0.0003675,2]
[400334651,1767384633952,-9103.02618725,0.00037012,2]
[400334652,1767384633963,-1328.0,0.00037248,2]
[400334653,1767384633973,-3463.0,0.00037248,2]
[400334654,1767384633983,-1265.0,0.00037248,2]
[400334655,1767384633992,-432.0,0.00037248,2]
[400334656,1767384634002,-804.1,0.00037691,5]
[400334657,1767384634012,-2433.0,0.00037693,2]
[400334658,1767384634021,-4814.0,0.00037693,2]
[400334659,1767384634031,-1180.0,0.00037709,14]
[400334660,1767384634041,-2934.33703132,0.00037769,2]
[400334661,1767384634051,-384.63394623,0.00037805,2]
[400334662,1767384634062,-150.0,0.00037922,2]
[400334663,1767384634073,-200.0,0.00037922,2]
[400334664,1767384634083,-150.0,0.00037922,2]
[400334665,1767384634095,-264.0,0.00037922,2]
[400334666,1767384634106,-250.0,0.00037922,2]
[400334667,1767384634117,-194.165,0.00037922,2]
[400334668,1767384634127,-224.984,0.00037922,2]
[400334669,1767384634136,-250.0,0.00037922,2]
[400334670,1767384634147,-156.732,0.00037922,2]
[400334671,1767384634157,-150.0,0.00037922,2]
[400334672,1767384634167,-150.0,0.00037922,2]
[400334673,1767384634176,-150.0,0.00037922,2]
[400334674,1767384634186,-613.0,0.00037922,2]
[400334675,1767384634196,-1352.2,0.00038093,5]
[400334676,1767384634206,-150.0,0.00038404,7]
[400334677,1767384634215,-150.0,0.00038404,7]
[400334678,1767384634224,-150.0,0.00038404,7]
[400334679,1767384634234,-150.0,0.00038404,7]
[400334680,1767384634244,-150.0,0.00038466,7]
[400334681,1767384634253,-150.0,0.00038466,7]
[400334682,1767384634264,-150.00000001,0.00038466,7]
[400334683,1767384634274,-150.0,0.00038466,7]
[400334684,1767384634284,-150.00000001,0.00038466,7]
[400334685,1767384634294,-150.0,0.00038466,7]
[400334686,1767384634304,-150.0,0.00038466,7]
[400334687,1767384634316,-151.85727786,0.00038466,7]
[400334688,1767384634327,-150.0,0.00038466,7]
[400334689,1767384634338,-150.0,0.00038466,7]
[400334690,1767384634348,-150.0,0.00038466,7]
[400334691,1767384634359,-1352.2,0.00038496,5]
[400334692,1767384634370,-300.0,0.00038658,2]
[400334693,1767384634380,-300.0,0.00038658,2]
[400334694,1767384634390,-303.85501722,0.00038658,2]
[400334695,1767384634400,-300.0,0.00038658,2]
[400334696,1767384634411,-367.65240202,0.00038658,2]
[400334697,1767384634421,-595.88867019,0.00038658,2]
[400334698,1767384634431,-364.48459935,0.00038658,2]
[400334699,1767384634442,-300.0,0.00038658,2]
[400334700,1767384634452,-300.0,0.00038658,2]
[400334701,1767384634462,-300.0,0.00038658,2]
[400334702,1767384634472,-300.0,0.00038658,2]
[400334703,1767384634482,-300.0,0.00038658,2]
[400334704,1767384634492,-300.0,0.00038658,2]
[400334705,1767384634503,-303.47175408,0.00038658,2]
[400334706,1767384634513,-320.19004811,0.00038658,2]
[400334707,1767384634522,-578.04560059,0.00038658,2]
[400334708,1767384634532,-300.0,0.00038658,2]
[400334709,1767384634542,-300.0,0.00038658,2]
[400334710,1767384634551,-300.0,0.00038658,2]
[400334711,1767384634562,-300.0,0.00038658,2]
[400334712,1767384634572,-300.0,0.00038658,2]
[400334713,1767384634581,-300.0,0.00038658,2]
[400334714,1767384634591,-615.94778257,0.00038658,2]
[400334715,1767384634601,-304.64549813,0.00038658,2]
[400334716,1767384634611,-300.0,0.00038658,2]
[400334717,1767384634629,-300.0,0.00038658,2]
[400334718,1767384634641,-300.0,0.00038658,2]
[400334719,1767384634651,-300.0,0.00038658,2]
[400334720,1767384634661,-303.85501722,0.00038658,2]
[400334721,1767384634671,-360.53749023,0.00038658,2]
[400334722,1767384634681,-364.48459935,0.00038658,2]
[400334723,1767384634691,-595.88867019,0.00038658,2]
[400334724,1767384634701,-300.0,0.00038658,2]
[400334725,1767384634711,-300.0,0.00038658,2]
[400334726,1767384634720,-300.0,0.00038658,2]
[400334727,1767384634731,-300.0,0.00038658,2]
[400334728,1767384634745,-300.0,0.00038658,2]
[400334729,1767384634754,-300.0,0.00038658,2]
[400334730,1767384634764,-303.47175408,0.00038658,2]
[400334731,1767384634774,-578.04560059,0.00038658,2]
[400334732,1767384634784,-362.10901698,0.00038658,2]
[400334733,1767384634793,-300.0,0.00038658,2]
[400334734,1767384634803,-300.0,0.00038658,2]
[400334735,1767384634813,-300.0,0.00038658,2]
[400334736,1767384634823,-300.0,0.00038658,2]
[400334737,1767384634833,-300.0,0.00038658,2]
[400334738,1767384634844,-615.94778257,0.00038658,2]
[400334739,1767384634854,-304.64549813,0.00038658,2]
[400334740,1767384634864,-1352.2,0.00038898,6]
[400334741,1767384634875,-2834.42740413,0.00038963,2]
[400334742,1767384635002,-1254.41808677,0.00038963,2]
[400334743,1767384635015,-906.0,0.00038963,2]
[400334744,1767384635027,-4108.18069635,0.00038963,2]
[400334745,1767384635038,-832.0,0.00038986,11]
[400334746,1767384635048,-500.0,0.00039096,2]
[400334747,1767384635058,-398.86540225,0.00039174,2]
[400334748,1767384635071,-1352.2,0.00039301,6]
[400334749,1767384635082,-2297.65326008,0.00039467,2]
[400334753,1767384637933,-478.8554117,0.00037693,2]
[400334754,1767384637946,-447.66174487,0.00037693,2]
[400334755,1767384637958,-1376.98124616,0.00037693,2]
[400334756,1767384637970,-1266.51684298,0.00037693,2]
[400334757,1767384637982,-688.30896852,0.00037693,2]
[400334758,1767384637994,-2285.67578577,0.00037693,2]
[400334759,1767384638004,-300.0,0.00038658,2]
[400334760,1767384638014,-300.0,0.00038658,2]
[400334761,1767384638024,-150.0,0.00039467,7]
[400334762,1767384638036,-636.68377124,0.00039467,2]
[400334763,1767384638048,-346.31970332,0.00039554,15]
[400334764,1767384638059,-383.82,0.00039654,2]
[400334765,1767384638069,-178.39,0.00039661,14]
[400334766,1767384638078,-5530.0,0.000397,5]
[400334767,1767384638089,-1352.2,0.00039703,6]
[400334768,1767384638099,-1000.0,0.00039758,2]
[400334769,1767384638109,-150.14249155,0.00039807,2]
[400334770,1767384638119,-150.0,0.0003989,7]
[400334771,1767384638128,-238.42,0.00039911,14]
[400334772,1767384638139,-508.0,0.00039964,2]
[400334773,1767384638149,-500.99997,0.00039964,2]
[400334774,1767384638159,-1352.2,0.00040105,6]
[400334775,1767384638169,-465.163,0.00040248,2]
[400334776,1767384638179,-3463.0,0.00040248,2]
[400334777,1767384638189,-1262.0,0.00040248,2]
[400334778,1767384638199,-151.84655333,0.00040253,2]
[400334779,1767384638209,-2000.0,0.000403,2]
[400334781,1767384638219,-1352.2,0.00040508,6]
[400334784,1767384638229,-2433.0,0.00040693,2]
[400334788,1767384638540,-4814.0,0.00040693,2]
[400334789,1767384638563,-4840.769,0.00040693,2]
[400334790,1767384638574,-238.42,0.00040867,14]
[400334791,1767384638584,-1352.2,0.0004091,6]
[400334792,1767384638594,-9103.02618725,0.00040914,15]
[400334793,1767384638605,-508.0,0.00040918,10]
[400334794,1767384638614,-150.0,0.00040922,2]
[400334795,1767384638624,-150.0,0.00040922,2]
[400334796,1767384638633,-150.0,0.00040922,2]
[400334797,1767384638643,-150.0,0.00040922,2]
[400334798,1767384638652,-150.0,0.00040922,2]
[400334799,1767384638662,-150.0,0.00040922,2]
[400334800,1767384638671,-613.0,0.00040922,2]
[400334801,1767384638681,-999.0,0.00041095,120]
[400334802,1767384638690,-256.26219828,0.00041096,61]
[400334803,1767384638699,-264.41,0.00041134,14]
[400334804,1767384638709,-2934.33703132,0.00041166,15]
[400334805,1767384638718,-346.3197033,0.0004121,17]
[400334806,1767384638727,-1352.2,0.00041313,30]
[400334807,1767384638737,-150.0,0.00041315,30]
[400334808,1767384638746,-832.0,0.0004132,11]
[400334809,1767384638756,-510.0,0.00041516,13]
[400334810,1767384638766,-800.0,0.00041516,13]
[400334811,1767384638775,-800.0,0.00041516,13]
[400334812,1767384638785,-800.0,0.00041516,13]
[400334813,1767384638794,-800.0,0.00041516,13]
[400334814,1767384638804,-800.0,0.00041516,13]
[400334815,1767384638813,-800.0,0.00041516,13]
[400334816,1767384638823,-800.0,0.00041516,13]
[400334817,1767384638835,-800.0,0.00041516,13]
[400334818,1767384638844,-800.0,0.00041516,13]
[400334819,1767384638854,-800.0,0.00041516,13]
[400334820,1767384638864,-800.0,0.00041516,13]
[400334821,1767384638874,-800.0,0.00041516,13]
[400334822,1767384638883,-800.0,0.00041548,13]
[400334823,1767384638893,-800.0,0.00041548,13]
[400334824,1767384638902,-800.0,0.00041548,13]
[400334825,1767384638912,-800.0,0.00041548,13]
[400334826,1767384638921,-800.0,0.00041548,13]
[400334827,1767384638930,-800.0,0.00041548,13]
[400334828,1767384638939,-800.0,0.00041548,13]
[400334829,1767384638948,-800.0,0.00041548,13]
[400334830,1767384638957,-500.0,0.0004158,60]
[400334831,1767384638966,-500.0,0.0004158,60]
[400334832,1767384638975,-800.0,0.0004158,60]
[400334833,1767384638984,-178.39,0.0004163,14]
[400334834,1767384638994,-992.25742191,0.0004167,7]
[400334835,1767384639003,-832.0,0.00041675,11]
[400334836,1767384639012,-276.495859,0.000417,2]
[400334837,1767384639021,-1352.2,0.00041715,30]
[400334838,1767384639030,-508.0,0.00041871,10]
[400334839,1767384639040,-832.0,0.00041989,16]
[400334840,1767384639049,-232.0,0.00042,2]
[400334841,1767384639058,-1005.79665366,0.000421,50]
[400334842,1767384639068,-1040.04484703,0.000421,50]
[400334843,1767384639077,-1076.06243321,0.000421,50]
[400334844,1767384639086,-1125.40590178,0.000421,50]
[400334845,1767384639095,-1098.54760245,0.000421,50]
[400334846,1767384639104,-1000.30285625,0.000421,50]
[400334847,1767384639114,-1118.39885793,0.000421,50]
[400334848,1767384639123,-1040.8509545,0.000421,50]
[400334849,1767384639132,-1000.0,0.000421,7]
[400334850,1767384639141,-1005.58048938,0.00042105,50]
[400334851,1767384639150,-1136.57631869,0.00042105,50]
[400334852,1767384639159,-880.9934814,0.00042105,50]
[400334853,1767384639171,-196.42980426,0.00042105,50]
[400334854,1767384639180,-1048.60999744,0.00042105,50]
[400334855,1767384639189,-1090.88315604,0.00042105,50]
[400334856,1767384639199,-1131.31535482,0.00042105,50]
[400334857,1767384639207,-1127.6007383,0.00042105,50]
[400334858,1767384639216,-1032.16134753,0.00042105,50]
[400334859,1767384639226,-1087.19279355,0.00042105,50]
[400334860,1767384639235,-1049.65414696,0.00042105,50]
[400334861,1767384639244,-1065.59393845,0.00042105,50]
[400334862,1767384639254,-1138.85185581,0.00042105,50]
[400334863,1767384639263,-1127.33234616,0.00042105,50]
[400334864,1767384639272,-1022.73780015,0.00042105,50]
[400334865,1767384639281,-1034.88853396,0.00042105,50]
[400334866,1767384639290,-1036.033205,0.00042105,50]
[400334867,1767384639300,-144.11769337,0.00042105,50]
[400334868,1767384639310,-865.42829817,0.00042105,50]
[400334869,1767384639325,-25.5381049,0.00042105,50]
[400334870,1767384639333,-1109.4776462,0.00042105,50]
[400334871,1767384639342,-1058.87258747,0.00042105,50]
[400334872,1767384639352,-550.3673295,0.00042105,50]
[400334873,1767384639365,-472.35133756,0.00042105,50]
[400334874,1767384639375,-280.90003227,0.00042105,50]
[400334875,1767384639386,-805.14202764,0.00042105,50]
[400334876,1767384639400,-117.49797236,0.00042105,50]
[400334877,1767384639416,-986.71026024,0.00042105,50]
[400334878,1767384639426,-1009.49609819,0.00042105,50]
[400334879,1767384639436,-1298.08708078,0.00042105,50]
[400334880,1767384639445,-500.0,0.00042128,60]
[400334881,1767384639455,-331.443225,0.00042128,60]
[400334884,1767384639945,-314.02192836,0.00041096,2]
[400334885,1767384639956,-468.556775,0.00042128,60]
[400334886,1767384639966,-171.08,0.00042137,30]
[400334887,1767384639975,-171.08,0.00042137,30]
[400334888,1767384639984,-171.08,0.00042137,30]
[400334889,1767384639993,-171.08,0.00042137,30]